bitfinex/quotes_SOLUSD_20241005
["timestamp","ask_amount","ask_price","bid_price","bid_amount"]
[1728111124860,6.9224,144.46,144.42,14.68379869]
[1728111126668,6.9224,144.46,144.42,6.924]
[1728111127556,6.9233,144.44,144.4,7.75979869]
[1728111127778,1.08294337,144.47,144.41,30.0]
[1728111127976,20.0,144.47,144.41,30.0]
[1728111128273,6.9237,144.43,144.39,6.9253]
[1728111128652,6.9233,144.44,144.39,6.9253]
[1728111128887,6.9237,144.43,144.39,6.9253]
[1728111129380,15.5907,144.44,144.39,6.9253]
[1728111129556,22.514,144.44,144.39,6.9253]
[1728111130382,14.31084337,144.43,144.38,24.241]
[1728111130566,14.31084337,144.43,144.39,30.0]
[1728111130771,14.31084337,144.43,144.38,24.241]
[1728111130971,14.31084337,144.43,144.38,32.00079869]
[1728111131681,14.31084337,144.43,144.38,24.241]
[1728111131867,14.31084337,144.43,144.38,32.00079869]
[1728111132063,6.3042,144.43,144.39,14.68539869]
[1728111132264,15.5907,144.44,144.41,7.75979869]
[1728111132487,15.5907,144.44,144.42,1.3846977]
[1728111132959,15.5907,144.44,144.41,14.68429869]
[1728111137067,22.6054,144.48,144.43,6.9236]
[1728111138555,6.9219,144.47,144.43,6.9236]
[1728111138980,6.9219,144.47,144.43,8.30817756]
[1728111139482,15.6839,144.48,144.44,6.9231]
[1728111139680,15.6839,144.48,144.44,14.68289869]
[1728111139907,20.0,144.5,144.45,18.6913498]
[1728111140117,20.0,144.5,144.46,7.75979869]
[1728111140291,20.0,144.5,144.47,7.75979869]
[1728111140496,20.0,144.5,144.45,31.98939869]
[1728111140497,26.9204,144.5,144.45,31.98939869]
[1728111141629,26.9204,144.5,144.46,16.06629622]
[1728111141805,26.9204,144.5,144.46,14.68199869]
[1728111143088,26.9204,144.5,144.47,1.38422416]
[1728111143300,26.9204,144.5,144.46,14.68199869]
[1728111146902,26.9204,144.5,144.46,7.75979869]
[1728111148820,26.9204,144.5,144.45,31.98929869]
[1728111149914,26.9204,144.5,144.48,6.921]
[1728111149915,20.0,144.5,144.48,6.921]
[1728111150126,20.0,144.5,144.47,24.2256]
[1728111150417,20.0,144.5,144.45,14.68209869]
[1728111153418,26.9205,144.5,144.45,7.75979869]
[1728111153909,26.9205,144.5,144.45,9.14407397]
[1728111154115,26.9205,144.5,144.45,7.75979869]
[1728111154711,26.9205,144.5,144.45,9.14407408]
[1728111155012,26.9205,144.5,144.44,31.99049869]
[1728111157002,15.247,144.51,144.46,6.9222]
[1728111157201,22.1669,144.51,144.47,1.38417176]
[1728111157394,15.247,144.51,144.47,1.38417176]
[1728111157619,22.1669,144.51,144.47,1.38417176]
[1728111158121,22.1669,144.51,144.46,7.75979869]
[1728111161239,6.9205,144.5,144.46,7.75979869]
[1728111161521,6.9205,144.5,144.44,17.3075]
[1728111161522,6.9209,144.49,144.44,24.2307]
[1728111161725,6.9209,144.49,144.45,7.75979869]
[1728111164724,6.9209,144.49,144.46,1.38432791]
[1728111164908,6.9209,144.49,144.45,7.75979869]
[1728111165515,15.247,144.51,144.46,7.75979869]
[1728111165723,20.0,144.51,144.48,7.75979869]
[1728111167001,6.92,144.51,144.48,7.75979869]
[1728111170221,26.9195,144.52,144.48,7.75979869]
[1728111170432,26.9195,144.52,144.49,1.38410745]
[1728111170628,6.9185,144.54,144.5,7.75979869]
[1728111170923,23.5099,144.55,144.5,7.75979869]
[1728111171422,16.5918,144.55,144.5,7.75979869]
[1728111171737,6.9185,144.54,144.5,7.75979869]
[1728111171944,6.919,144.53,144.49,7.75979869]
[1728111176650,6.919,144.53,144.5,7.75979869]
[1728111177041,6.919,144.53,144.48,17.3028]
[1728111177348,6.919,144.53,144.49,7.75979869]
[1728111177527,6.919,144.53,144.5,7.75979869]
[1728111182150,6.919,144.53,144.48,17.3028]
[1728111182448,6.919,144.53,144.49,7.75979869]
[1728111183546,20.0,144.54,144.5,7.75979869]
[1728111183750,26.9185,144.54,144.5,9.14370016]
[1728111183957,20.0,144.54,144.51,7.75979869]
[1728111188444,15.371,144.58,144.53,7.75979869]
[1728111188641,6.9174,144.57,144.53,7.75979869]
[1728111189328,23.4527,144.6,144.54,7.75979869]
[1728111189554,6.9166,144.58,144.55,7.75979869]
[1728111189758,6.9166,144.58,144.55,9.1432896]
[1728111190166,6.9166,144.58,144.55,7.75979869]
[1728111196537,15.371,144.62,144.57,7.75979869]
[1728111196737,15.371,144.62,144.58,9.14304688]
[1728111197069,32.3357,144.66,144.58,9.14304688]
[1728111197372,15.0535,144.66,144.61,7.75979869]
[1728111197539,6.9132,144.65,144.62,7.75979869]
[1728111198172,17.2788,144.69,144.62,7.75979869]
[1728111198335,17.2788,144.69,144.59,6.9156]
[1728111198336,15.0535,144.7,144.63,7.75979869]
[1728111198740,6.9123,144.67,144.61,24.2021]
[1728111198937,6.9123,144.67,144.62,7.75979869]
[1728111200566,7.99584337,144.66,144.58,24.027864]
[1728111200751,6.9133,144.65,144.59,36.916]
[1728111201064,6.9133,144.65,144.61,7.75979869]
[1728111201272,1.08294337,144.64,144.59,30.0]
[1728111201575,52.33239912,144.69,144.59,30.0]
[1728111201576,6.915,144.62,144.59,30.0]
[1728111201744,6.915,144.62,144.59,37.75979869]
[1728111201946,6.915,144.62,144.59,7.75979869]
[1728111202254,6.9142,144.63,144.59,7.75979869]
[1728111202969,20.0,144.66,144.6,9.14280974]
[1728111203270,6.9137,144.64,144.61,7.75979869]
[1728111203646,6.9133,144.65,144.61,7.75979869]
[1728111203846,20.0,144.64,144.61,7.75979869]
[1728111204373,6.9133,144.65,144.61,7.75979869]
[1728111205282,6.9133,144.65,144.62,7.75979869]
[1728111205446,20.0,144.66,144.63,7.75979869]
[1728111205646,20.0,144.66,144.62,7.75979869]
[1728111205955,20.0,144.67,144.64,7.75979869]
[1728111206359,6.9118,144.68,144.64,7.75979869]
[1728111206552,6.9113,144.69,144.65,9.14239171]
[1728111206777,6.9113,144.69,144.65,7.75979869]
[1728111207147,6.9109,144.7,144.65,7.75979869]
[1728111207370,6.9105,144.71,144.67,7.75979869]
[1728111208153,6.9099,144.72,144.68,7.75979869]
[1728111208358,7.7717614,144.73,144.69,9.14190285]
[1728111208873,7.7717614,144.73,144.69,7.75979869]
[1728111209249,0.8623614,144.73,144.64,23.8813]
[1728111209560,6.9103,144.71,144.66,7.75979869]
[1728111211980,7.99384337,144.7,144.66,7.75979869]
[1728111212279,6.9117,144.69,144.65,30.0]
[1728111212461,0.8623614,144.73,144.65,30.0]
[1728111212462,7.99474337,144.68,144.65,30.0]
[1728111212974,6.9118,144.68,144.64,7.75979869]
[1728111213553,6.9122,144.67,144.64,7.75979869]
[1728111214076,6.9122,144.67,144.62,15.5451]
[1728111214386,43.776884,144.7,144.62,23.30489869]
[1728111214594,1.08294337,144.69,144.61,31.64539869]
[1728111214764,6.9132,144.65,144.61,31.64539869]
[1728111215287,1.08294337,144.69,144.6,7.75979869]
[1728111215467,6.9138,144.64,144.61,30.0]
[1728111216364,7.99714337,144.63,144.58,47.87769869]
[1728111216568,6.9142,144.63,144.59,30.0]
[1728111217291,6.9142,144.63,144.58,47.87769869]
[1728111217610,6.9142,144.63,144.59,7.75979869]
[1728111218370,6.9147,144.62,144.59,7.75979869]
[1728111218570,6.9147,144.62,144.58,40.96129869]
[1728111219073,6.9147,144.62,144.59,7.75979869]
[1728111221388,44.027864,144.68,144.59,7.75979869]
[1728111221583,6.9143,144.63,144.59,7.75979869]
[1728111225381,6.9143,144.63,144.58,33.2015]
[1728111225581,6.9143,144.63,144.59,7.75979869]
[1728111229511,6.9147,144.62,144.59,7.75979869]
[1728111229697,6.9147,144.62,144.58,25.05079869]
[1728111231794,6.9126,144.67,144.62,6.9145]
[1728111232005,6.9126,144.67,144.63,9.14241062]
[1728111234996,6.9126,144.67,144.63,7.75979869]
[1728111235195,16.1583,144.69,144.64,1.38256549]
[1728111235396,26.9118,144.68,144.64,9.14236418]
[1728111238405,26.9118,144.68,144.64,7.75979869]
[1728111239100,26.9118,144.68,144.64,7.25979869]
[1728111239483,26.9118,144.68,144.64,8.64234421]
[1728111239881,6.9114,144.69,144.64,14.17339869]
[1728111240191,6.9118,144.68,144.64,14.17339869]
[1728111240897,6.9118,144.68,144.64,7.25979869]
[1728111241714,7.99524337,144.67,144.62,24.2005]
[1728111241889,20.0,144.7,144.63,1.38259944]
[1728111241890,6.9128,144.66,144.63,1.38259944]
[1728111242222,6.9128,144.66,144.62,25.04579869]
[1728111242589,1.08294337,144.65,144.59,46.2807]
[1728111242909,26.9146,144.62,144.61,30.0]
[1728111243216,6.9156,144.61,144.56,25.05299869]
[1728111243395,7.99854337,144.61,144.56,17.2932]
[1728111243593,6.9156,144.6,144.56,17.2932]
[1728111244133,6.9151,144.62,144.56,31.97039869]
[1728111244409,20.0,144.62,144.58,14.67629869]
[1728111244608,20.0,144.62,144.59,9.1427929]
[1728111245493,20.0,144.62,144.59,7.75979869]
[1728111245910,26.9147,144.62,144.59,7.75979869]
[1728111246105,26.9147,144.62,144.58,7.75979869]
[1728111246313,26.9147,144.62,144.57,7.75979869]
[1728111248002,26.9147,144.62,144.57,14.67669869]
[1728111248310,26.9147,144.62,144.58,7.75979869]
[1728111252520,6.9147,144.62,144.58,14.67629869]
[1728111252707,6.9147,144.62,144.58,7.75979869]
[1728111254024,6.9147,144.62,144.58,9.14282567]
[1728111254336,6.9147,144.62,144.58,7.75979869]
[1728111254623,20.0,144.65,144.58,7.75979869]
[1728111254815,6.9152,144.61,144.58,7.75979869]
[1728111257406,6.9151,144.62,144.59,9.14284793]
[1728111257608,6.9151,144.62,144.59,7.75979869]
[1728111261126,6.9157,144.6,144.58,1.38304523]
[1728111261302,6.9157,144.6,144.57,7.75979869]
[1728111261504,37.2837,144.65,144.57,7.75979869]
[1728111261717,6.9151,144.61,144.57,7.75979869]
[1728111262435,6.9151,144.61,144.58,9.1429131]
[1728111262606,6.9147,144.62,144.58,9.1429131]
[1728111264029,6.9143,144.63,144.6,7.75979869]
[1728111264234,15.8691,144.67,144.61,9.14261673]
[1728111264408,15.8691,144.67,144.63,7.75979869]
[1728111265111,6.9131,144.66,144.63,37.75979869]
[1728111266237,6.9131,144.66,144.63,30.0]
[1728111266620,6.9131,144.66,144.63,31.38265836]
[1728111266817,6.9131,144.66,144.63,30.0]
[1728111268008,6.9137,144.64,144.63,30.0]
[1728111268208,6.9137,144.64,144.61,7.75979869]
[1728111268422,6.9137,144.64,144.62,30.0]
[1728111269428,6.9132,144.65,144.63,1.38279031]
[1728111269623,6.9132,144.65,144.63,30.0]
[1728111269830,15.8691,144.67,144.63,30.0]
[1728111270153,6.9128,144.66,144.63,30.0]
[1728111271819,6.9132,144.65,144.63,30.0]
[1728111272935,6.9128,144.66,144.63,30.0]
[1728111276224,6.9128,144.66,144.63,29.90932]
[1728111276744,6.9128,144.66,144.63,37.66911869]
[1728111277035,26.9122,144.67,144.64,1.38255951]
[1728111277220,26.9122,144.67,144.64,30.0]
[1728111279847,20.0,144.7,144.64,37.75979869]
[1728111280147,6.9104,144.71,144.66,14.67239869]
[1728111280322,6.9104,144.71,144.67,9.14201708]
[1728111280525,6.9104,144.71,144.67,7.75979869]
[1728111280931,6.9109,144.7,144.66,37.75979869]
[1728111281138,6.9113,144.69,144.66,30.0]
[1728111281738,1.08294337,144.68,144.66,30.0]
[1728111281938,1.08294337,144.7,144.66,30.0]
[1728111282326,6.9122,144.67,144.66,30.0]
[1728111282525,6.9122,144.67,144.64,30.0]
[1728111284553,6.9122,144.67,144.63,7.75979869]
[1728111285641,6.9122,144.67,144.64,30.0]
[1728111285824,6.9122,144.67,144.64,31.38256381]
[1728111286024,6.9122,144.67,144.64,30.0]
[1728111288425,6.9122,144.67,144.64,39.14237095]
[1728111289231,6.9122,144.67,144.64,37.75979869]
[1728111289849,6.9119,144.68,144.65,1.38252093]
[1728111290055,6.9119,144.68,144.66,30.0]
[1728111291165,20.0,144.7,144.66,30.0]
[1728111291667,20.0,144.7,144.66,31.38236217]
[1728111291868,26.9112,144.7,144.66,31.38236217]
[1728111292373,26.9112,144.7,144.66,30.0]
[1728111292867,26.9112,144.7,144.66,31.3823217]
[1728111293462,26.9112,144.7,144.66,30.0]
[1728111294250,20.0,144.71,144.66,30.0]
[1728111294569,6.9113,144.69,144.66,30.0]
[1728111294860,6.4113,144.69,144.66,30.0]
[1728111295062,6.4113,144.69,144.66,31.38232093]
[1728111295560,6.4113,144.69,144.66,30.0]
[1728111298165,20.0,144.71,144.66,30.0]
[1728111298348,6.9118,144.68,144.66,30.0]
[1728111301351,20.0,144.71,144.66,30.0]
[1728111302266,6.9117,144.69,144.66,30.0]
[1728111302756,6.9117,144.69,144.66,31.38235011]
[1728111303849,6.9117,144.69,144.66,30.0]
[1728111310175,6.9117,144.69,144.65,6.9131]
[1728111313156,6.9117,144.69,144.66,30.0]
[1728111314583,6.9117,144.69,144.65,6.9131]
[1728111314584,1.08294337,144.68,144.63,25.04419869]
[1728111314778,20.0,144.71,144.64,30.0]
[1728111314779,6.9122,144.67,144.64,30.0]
[1728111314970,20.0,144.71,144.64,30.0]
[1728111315280,6.9119,144.68,144.64,30.0]
[1728111315666,6.9119,144.68,144.63,24.1984]
[1728111315866,6.9119,144.68,144.63,31.95819869]
[1728111316782,6.9124,144.67,144.63,31.95819869]
[1728111317081,6.9124,144.67,144.63,25.04419869]
[1728111319072,6.9124,144.67,144.63,17.2844]
[1728111319279,1.08294337,144.66,144.6,23.6239]
[1728111319462,1.08294337,144.68,144.61,30.0]
[1728111320081,6.9138,144.64,144.61,30.0]
[1728111320282,1.08294337,144.68,144.61,30.0]
[1728111320583,6.9138,144.64,144.61,30.0]
[1728111320977,20.0,144.69,144.61,30.0]
[1728111321161,6.9137,144.64,144.61,30.0]
[1728111321867,6.9137,144.64,144.6,17.2885]
[1728111324258,20.0,144.69,144.62,7.75979869]
[1728111324464,6.9127,144.67,144.63,9.14243428]
[1728111325962,22.2581,144.7,144.63,9.14243428]
[1728111325963,15.8373,144.7,144.65,7.75979869]
[1728111326306,6.9114,144.69,144.66,1.38232963]
[1728111326461,6.9114,144.69,144.64,14.67329869]
[1728111329479,6.9114,144.69,144.65,1.38234419]
[1728111329678,6.9109,144.7,144.65,6.9129]
[1728111329992,6.9109,144.7,144.65,14.67269869]
[1728111330379,6.9109,144.7,144.66,1.38234176]
[1728111330581,6.9114,144.69,144.66,1.38234176]
[1728111330975,6.9114,144.69,144.65,14.67269869]
[1728111331868,6.9114,144.69,144.65,7.75979869]
[1728111335790,6.9109,144.7,144.65,14.67259869]
[1728111335996,6.9109,144.7,144.66,1.38234329]
[1728111336196,6.9109,144.7,144.66,9.14214198]
[1728111336393,0.8623614,144.73,144.67,9.14206188]
[1728111336595,7.7717614,144.73,144.69,7.75979869]
[1728111336891,6.9099,144.72,144.69,7.75979869]
[1728111337095,7.7718614,144.73,144.69,7.75979869]
[1728111337594,7.7718614,144.73,144.7,1.38199345]
[1728111338183,7.7718614,144.73,144.69,7.75979869]
[1728111340090,6.9099,144.72,144.69,7.75979869]
[1728111341397,6.9099,144.72,144.67,6.9121]
[1728111341693,6.9099,144.72,144.68,37.75979869]
[1728111343000,6.9099,144.72,144.68,7.75979869]
[1728111350583,6.9113,144.69,144.66,16.5247]
[1728111350780,6.9113,144.69,144.66,24.28449869]
[1728111351706,6.9113,144.69,144.67,1.38225564]
[1728111352199,0.8623614,144.73,144.68,7.75979869]
[1728111352503,6.9099,144.72,144.68,7.75979869]
[1728111352691,6.9099,144.72,144.69,9.14185859]
[1728111353808,6.9099,144.72,144.68,7.75979869]
[1728111354684,6.9104,144.71,144.68,7.75979869]
[1728111354885,6.9108,144.7,144.66,23.4373]
[1728111355095,6.9108,144.7,144.67,39.14201225]
[1728111355485,6.9108,144.7,144.67,9.14201225]
[1728111356507,6.9104,144.71,144.67,14.67199869]
[1728111358483,6.9104,144.71,144.68,1.38212733]
[1728111359588,6.9104,144.71,144.67,14.67199869]
[1728111359900,6.91,144.72,144.67,14.67199869]
[1728111360216,6.9104,144.71,144.68,1.38205745]
[1728111360378,6.9104,144.71,144.67,14.67199869]
[1728111361882,6.9114,144.69,144.66,16.5247]
[1728111362083,6.9114,144.69,144.67,30.0]
[1728111362709,0.8623614,144.73,144.67,30.0]
[1728111362907,6.9109,144.7,144.67,30.0]
[1728111363209,6.9104,144.71,144.67,38.29440734]
[1728111363413,6.9104,144.71,144.67,36.9122]
[1728111364205,6.9109,144.7,144.67,30.0]
[1728111364725,6.9109,144.7,144.66,31.19709869]
[1728111364896,6.9109,144.7,144.67,1.38219623]
[1728111365094,0.8623614,144.73,144.67,1.38219623]
[1728111365301,0.8623614,144.73,144.67,8.29439623]
[1728111365302,6.9103,144.71,144.67,8.29439623]
[1728111365819,6.9103,144.71,144.67,6.9122]
[1728111367022,6.9103,144.71,144.66,23.4374]
[1728111367322,6.9103,144.71,144.67,7.75979869]
[1728111368616,1.94530477,144.73,144.67,7.75979869]
[1728111368809,6.911,144.7,144.67,7.75979869]
[1728111369220,6.911,144.7,144.66,16.5247]
[1728111370332,20.0,144.72,144.65,6.3093]
[1728111370634,6.9114,144.69,144.64,14.67339869]
[1728111371937,6.9114,144.69,144.65,7.75979869]
[1728111372311,6.9114,144.69,144.66,1.38234927]
[1728111372809,6.9114,144.69,144.65,14.67279869]
[1728111373936,6.9142,144.63,144.6,15.7065]
[1728111374246,21.08294337,144.68,144.62,30.0]
[1728111374247,6.9137,144.64,144.62,30.0]
[1728111375541,6.9137,144.64,144.61,30.0]
[1728111375741,6.9146,144.62,144.61,30.0]
[1728111376515,6.9153,144.61,144.57,23.46629869]
[1728111376712,6.9153,144.61,144.58,30.0]
[1728111377938,6.9153,144.61,144.57,23.46629869]
[1728111378438,6.9153,144.61,144.58,1.38311381]
[1728111379621,6.9153,144.61,144.57,23.46629869]
[1728111381536,6.9153,144.61,144.57,7.75979869]
[1728111384533,6.9153,144.61,144.57,14.67679869]
[1728111386950,6.9148,144.62,144.57,14.67679869]
[1728111388127,6.9148,144.62,144.57,6.917]
[1728111388318,6.9148,144.62,144.57,14.67679869]
[1728111389246,6.9148,144.62,144.58,14.67619869]
[1728111389429,26.9141,144.64,144.59,8.29897738]
[1728111390552,26.9141,144.64,144.59,16.05877607]
[1728111394454,26.9141,144.64,144.59,9.14277607]
[1728111394650,26.9141,144.64,144.6,6.9155]
[1728111395948,20.0,144.64,144.6,14.67529869]
[1728111396341,26.9137,144.64,144.6,6.9155]
[1728111396540,6.9137,144.64,144.61,1.38284867]
[1728111397252,6.9137,144.64,144.59,17.2895]
[1728111397438,6.9137,144.64,144.59,24.2055]
[1728111401153,22.92554337,144.65,144.59,24.2055]
[1728111401460,6.9143,144.63,144.59,7.75979869]
[1728111401659,6.9143,144.63,144.58,7.75979869]
[1728111401868,6.9143,144.63,144.59,30.0]
[1728111402252,6.9151,144.62,144.58,7.75979869]
[1728111403262,21.8426,144.65,144.6,7.75979869]
[1728111403263,15.3662,144.65,144.6,7.75979869]
[1728111403470,6.914,144.64,144.61,0.12549]
[1728111403664,6.9147,144.62,144.6,7.75979869]
[1728111405466,6.9147,144.62,144.59,7.75979869]
[1728111413674,6.9143,144.63,144.59,7.75979869]
[1728111428881,6.9152,144.61,144.59,7.75979869]
[1728111429183,6.9152,144.61,144.58,7.75979869]
[1728111429368,6.9152,144.61,144.59,30.0]
[1728111430172,6.9152,144.61,144.6,1.38297161]
[1728111430389,6.9152,144.61,144.59,30.0]
[1728111432668,6.9152,144.61,144.58,7.75979869]
[1728111435189,6.9157,144.6,144.57,7.75979869]
[1728111435395,6.9152,144.61,144.58,1.38305474]
[1728111435693,6.9152,144.61,144.59,1.38303916]
[1728111435902,6.9152,144.61,144.58,1.38302555]
[1728111436908,6.9152,144.61,144.57,7.75979869]
[1728111437076,6.9152,144.61,144.58,30.0]
[1728111437274,6.9152,144.61,144.58,31.38304277]
[1728111437487,6.9152,144.61,144.58,30.0]
[1728111442099,6.9152,144.61,144.58,37.75979869]
[1728111443695,6.9152,144.61,144.58,7.75979869]
[1728111445405,31.99527598,144.65,144.58,7.75979869]
[1728111445878,31.99527598,144.65,144.55,17.2943]
[1728111446083,21.08294337,144.64,144.55,17.41979]
[1728111446294,21.08294337,144.64,144.52,24.2178]
[1728111446295,23.776884,144.63,144.52,24.2178]
[1728111446496,6.9181,144.55,144.5,8.12463545]
[1728111446697,6.9181,144.55,144.51,7.75979869]
[1728111446910,6.919,144.53,144.49,17.3018]
[1728111447100,6.9195,144.52,144.49,7.75979869]
[1728111447279,6.9199,144.51,144.46,24.2276]
[1728111447482,6.9199,144.51,144.48,7.75979869]
[1728111448112,23.5849,144.57,144.48,7.75979869]
[1728111448298,6.9194,144.52,144.48,7.75979869]
[1728111449204,6.9194,144.52,144.49,9.14369663]
[1728111450410,6.9194,144.52,144.49,7.75979869]
[1728111450913,6.9194,144.52,144.48,7.88528869]
[1728111452628,6.9194,144.52,144.48,0.12549]
[1728111453001,6.9194,144.52,144.48,7.88528869]
[1728111453225,1.08294337,144.53,144.46,17.3054]
[1728111453226,1.08294337,144.51,144.46,24.2276]
[1728111453424,15.1124,144.54,144.47,7.75979869]
[1728111453425,6.9204,144.5,144.47,7.75979869]
[1728111454420,6.9199,144.51,144.48,7.75979869]
[1728111458311,6.9205,144.5,144.48,7.75979869]
[1728111459028,6.9205,144.5,144.47,7.75979869]
[1728111459933,1.08294337,144.53,144.47,7.75979869]
[1728111460239,6.9209,144.49,144.47,7.75979869]
[1728111461505,6.9203,144.51,144.47,7.75979869]
[1728111461799,1.08294337,144.52,144.47,7.75979869]
[1728111462225,20.0,144.53,144.47,7.75979869]
[1728111462808,1.08294337,144.52,144.47,7.75979869]
[1728111463004,7.64424337,144.52,144.47,7.75979869]
[1728111463214,6.9205,144.5,144.47,7.75979869]
[1728111463421,6.9205,144.5,144.46,7.75979869]
[1728111470433,6.9205,144.5,144.47,7.75979869]
[1728111470933,6.9199,144.51,144.48,9.14399715]
[1728111472631,6.9208,144.5,144.45,24.2288]
[1728111472809,6.9208,144.5,144.45,31.98859869]
[1728111472810,6.9209,144.49,144.45,31.98859869]
[1728111473335,6.9209,144.49,144.45,17.3061]
[1728111473630,6.9214,144.48,144.45,17.3061]
[1728111474832,6.9214,144.48,144.45,25.06589869]
[1728111476028,6.9214,144.48,144.44,14.68289869]
[1728111476233,6.9219,144.47,144.44,7.75979869]
[1728111476425,6.9215,144.48,144.44,7.75979869]
[1728111478242,20.0,144.51,144.42,17.43539]
[1728111478418,6.9219,144.47,144.43,7.75979869]
[1728111478629,6.9219,144.47,144.44,7.75979869]
[1728111479146,6.9219,144.47,144.43,7.75979869]
[1728111480639,6.9224,144.46,144.42,31.99349869]
[1728111480852,6.9224,144.46,144.42,25.06969869]
[1728111481544,6.9229,144.45,144.42,7.75979869]
[1728111482125,1.08294337,144.48,144.42,7.75979869]
[1728111482429,6.9224,144.46,144.42,7.75979869]
[1728111483355,15.8837,144.49,144.45,7.75979869]
[1728111483550,6.9214,144.48,144.46,7.75979869]
[1728111483750,6.9214,144.48,144.45,7.75979869]
[1728111484337,20.0,144.51,144.45,7.75979869]
[1728111484537,20.0,144.49,144.45,7.75979869]
[1728111484738,20.0,144.5,144.46,7.75979869]
[1728111485345,20.0,144.5,144.46,14.68189869]
[1728111488978,20.0,144.51,144.48,6.9213]
[1728111489260,15.8837,144.52,144.48,7.75979869]
[1728111489561,20.0,144.54,144.49,25.06119869]
[1728111489761,294.07297777,144.65,144.48,1.38418074]
[1728111489762,22.1397,144.59,144.53,7.75979869]
[1728111490356,22.1397,144.59,144.53,14.67829869]
[1728111490665,6.917,144.58,144.53,31.97469869]
[1728111491852,20.0,144.57,144.53,31.97469869]
[1728111492060,6.917,144.58,144.53,31.97469869]
[1728111493359,20.0,144.57,144.53,31.97469869]
[1728111495377,20.0,144.57,144.53,24.2149]
[1728111495551,20.0,144.57,144.53,31.97469869]
[1728111501167,6.9159,144.6,144.55,14.67769869]
[1728111501352,6.9159,144.6,144.56,14.67729869]
[1728111506168,6.9151,144.61,144.57,7.75979869]
[1728111510967,6.9148,144.62,144.58,14.67609869]
[1728111511262,20.0,144.62,144.59,14.67579869]
[1728111511471,33.8279,144.66,144.6,7.75979869]
[1728111511472,6.9138,144.64,144.6,7.75979869]
[1728111512448,6.9138,144.64,144.59,14.67579869]
[1728111512669,7.99714337,144.63,144.59,14.67579869]
[1728111512966,7.99714337,144.63,144.59,6.916]
[1728111513560,6.9146,144.62,144.58,14.67619869]
[1728111513754,7.99824337,144.61,144.57,24.2087]
[1728111514977,6.9142,144.63,144.58,7.75979869]
[1728111515179,20.0,144.63,144.59,16.05888535]
[1728111515366,20.0,144.63,144.59,14.67579869]
[1728111515755,26.9142,144.63,144.59,14.67579869]
[1728111518982,26.9142,144.63,144.59,6.916]
[1728111520883,6.9137,144.64,144.6,1.38306475]
[1728111521061,60.95653397,144.69,144.6,16.05826344]
[1728111521263,6.9133,144.65,144.61,7.75979869]
[1728111521661,6.9139,144.64,144.61,7.75979869]
[1728111523988,6.9139,144.64,144.6,7.75979869]
[1728111525667,6.9147,144.62,144.58,15.5378]
[1728111525982,6.9147,144.62,144.58,23.29759869]
[1728111527978,6.9156,144.6,144.58,15.5378]
[1728111532794,6.9156,144.6,144.57,7.75979869]
[1728111537783,6.9147,144.62,144.57,7.75979869]
[1728111538394,1.08294337,144.61,144.57,7.75979869]
[1728111538991,1.08294337,144.61,144.57,14.67639869]
[1728111539694,1.08294337,144.61,144.58,7.75979869]
[1728111540495,7.99824337,144.61,144.58,7.75979869]
[1728111540788,7.99824337,144.61,144.56,31.97039869]
[1728111540789,1.08294337,144.6,144.56,31.97039869]
[1728111542874,1.08294337,144.6,144.56,25.05299869]
[1728111543075,1.08294337,144.6,144.57,6.9169]
[1728111543996,6.9153,144.61,144.57,6.9169]
[1728111545003,6.9153,144.61,144.57,14.67669869]
[1728111547075,1.08294337,144.6,144.57,14.67669869]
[1728111547401,6.9153,144.61,144.57,14.67669869]
[1728111548897,1.08294337,144.6,144.57,14.67669869]
[1728111549194,1.08294337,144.6,144.57,7.75979869]
[1728111549987,7.99864337,144.6,144.57,7.75979869]
[1728111551794,6.9157,144.6,144.57,7.75979869]
[1728111558116,17.2868,144.62,144.53,6.9185]
[1728111558320,21.08294337,144.61,144.55,7.75979869]
[1728111558615,6.9161,144.59,144.55,14.67769869]